Cogmind - Beta 14 @@@ ROGUE MODE // 2024.12.10 @ 22:46:53 Player: morimori Result: Destroyed by Y-54 Guardian with Flak Gun Performance ------------- Evolutions (4) 2000 Regions Visited (11) 2200 Robots Destroyed (203) 1015 Value Destroyed (4190) 4190 Prototype IDs (3) 60 Alien Tech Used (1) 200 Bonus (-5246) -5246 TOTAL SCORE: 4419 Bonus ------- High Alert Combat Kills 81 Follower Combat Kills 180 Friendly Fire -5507 Cogmind --------- Core Integrity 0/850 Matter 202/300 Energy 99/100 System Corruption 0% Temperature Cool (0) Movement Core (50) Location -6/Factory Parts ------- > --- POWER (2) -------- (None) > --- PROPULSION (6) --- (None) > --- UTILITY (6) ------ Advanced Targeting Computer Hacking Suite Hacking Suite Authchip [Processor] > --- WEAPON (2) ------- (None) > --- INVENTORY (5) ---- Light Fission Core Large Storage Unit High-capacity Storage Unit Medium Reactive Plating Authchip [Armor] Peak State ------------ > --- POWER ------------ Improved Deuterium Engine > --- PROPULSION ------- Airjet Airjet Gravmag System Gravmag System Gravmag System > --- UTILITY ---------- Large Storage Unit Improved Signal Interpreter Improved Terrain Scanner Advanced Terrain Scan Processor Medium Reactive Plating > --- WEAPON ----------- Heavy Machine Gun Power Maul > --- INVENTORY -------- Improved Deuterium Engine High-capacity Storage Unit Improved Sensor Array Hacking Suite Hacking Suite Advanced Hacking Suite Authchip [Device] Authchip [Device] Authchip [Device] Authchip [Processor] Authchip [Armor] Flak Gun Heavy Machine Gun Proton Missile Launcher Heavy Rocket Launcher [Rating: 51] Favorites ----------- Power Light Ion Engine Engine Light Ion Engine Power Core Micro Nuclear Core Propulsion Wheel Leg VSS Leg Wheel Wheel Hover Unit Gravmag System Utility High-capacity Storage Unit Device Seismic Detector Storage High-capacity Storage Unit Processor Advanced Terrain Scan Processor Hackware Hacking Suite Protection Reflective Plating Weapon Flak Cannon Energy Gun Gatling Laser Energy Cannon Phase Cannon Ballistic Gun Autogun Ballistic Cannon Flak Cannon Launcher Grenade Launcher Impact Weapon Power Maul Slashing Weapon Great Axe Build | -11 -10 -10 -9 -9 -8 -7 -7 -7 -7 -7 -6 ------- Run | Yrd Mat Min Mat Min Mat Fac Was Fac Low Low Fac Slots Evolved 8 | . . . 2 . 2 2 . . . . 2 Power 1 | . . . . . . . . . . . 1 Propulsion 4 | . . . . . 2 1 . . . . 1 Utility 3 | . . . 2 . . 1 . . . . . Weapon . | . . . . . . . . . . . . Parts Attached 197 | 7 20 7 52 7 28 32 1 19 7 10 7 Power 18 | 1 2 . 4 . 3 4 . 3 . 1 . Engine 14 | 1 2 . 4 . 2 2 . 2 . 1 . Core 4 | . . . . . 1 2 . 1 . . . Reactor . | . . . . . . . . . . . . Propulsion 45 | 2 5 . 8 2 9 8 1 8 . . 2 Treads . | . . . . . . . . . . . . Leg 2 | . . . . . . . . . . . 2 Wheel 26 | 2 5 . 8 2 9 . . . . . . Hover 17 | . . . . . . 8 1 8 . . . Flight . | . . . . . . . . . . . . Utility 81 | 2 5 2 28 2 10 13 . 5 4 7 3 Device 38 | 1 1 1 13 1 7 7 . 4 2 1 . Storage 6 | 1 2 . . . . 1 . 1 . . 1 Processor 5 | . . . . . 2 2 . . . . 1 Hackware 7 | . . . . . . . . . . 6 1 Protection 25 | . 2 1 15 1 1 3 . . 2 . . Artifact . | . . . . . . . . . . . . Weapon 53 | 2 8 5 12 3 6 7 . 3 3 2 2 Energy Gun 6 | 1 . . . . 3 2 . . . . . Energy Cannon 1 | . . . . . . . . . . . 1 Ballistic Gun 19 | 1 6 2 4 . . 3 . 2 1 . . Ballistic Cannon 9 | . 2 . 4 2 1 . . . . . . Launcher 7 | . . 3 . . . 1 . . 1 2 . Special Weapon . | . . . . . . . . . . . . Impact Weapon 10 | . . . 4 1 2 1 . 1 1 . . Slashing Weapon 1 | . . . . . . . . . . . 1 Piercing Weapon . | . . . . . . . . . . . . Special Melee Weapon . | . . . . . . . . . . . . Unidentified Prototypes 4 | . . . 1 . . 2 . . 1 . . Corrupted Parts 1 | . . . . 1 . . . . . . . System Corruption 4 | . . . . 4 . . . . . . . Parts Lost 36 | . 2 . 1 2 12 1 . 3 . 13 2 Power 3 | . . . . . 1 . . . . 2 . Propulsion 17 | . 2 . . . 6 1 . 3 . 5 . Utility 14 | . . . 1 2 3 . . . . 6 2 Weapon 2 | . . . . . 2 . . . . . . Highest Loss Streak 7 | . 1 . 1 2 3 1 . 2 . 7 2 To Critical Strikes . | . . . . . . . . . . . . Average Slot Usage (%) 95 | . 99 100 98 97 85 99 100 99 97 63 31 Engine 7 | . 14 14 10 11 7 1 . . 7 4 . Core 1 | . . . . . 1 5 7 6 . . . Wheel 15 | . 27 28 22 22 24 . . . . . . Hover 12 | . . . . . . 37 38 37 37 22 . Device 10 | . 3 13 8 10 14 12 15 15 14 8 . Storage 9 | . 14 14 11 11 9 7 7 7 7 6 . Processor 5 | . . . . . 6 8 15 15 14 8 5 Protection 10 | . 10 . 23 20 3 8 . . . . . Energy Gun 3 | . 5 . . . 10 10 . . . . . Ballistic Gun 7 | . 16 18 6 . . 3 15 8 7 . . Ballistic Cannon 5 | . 5 . 12 13 7 . . . . . . Launcher 1 | . . 9 . . . . . . . 3 . Impact Weapon 2 | . . . 2 8 . . . 6 6 4 . Peak Build Rating 51 | 7 11 11 23 22 30 49 49 50 51 50 26 Average Rating 26 | 5 8 10 18 20 24 44 48 49 48 34 18 On Entrance 25 | . 7 11 10 20 19 28 48 49 48 51 15 Naked Turns . | . . . . . . . . . . . . Heaviest Build 71 | 12 52 50 71 71 67 46 36 39 59 42 20 Greatest Support 54 | 26 26 20 26 26 54 43 43 44 43 43 24 Greatest Overweight (x) 3 | . 3 2 3 3 3 1 . . 1 1 2 Average Overweight (x) . | . 1 2 2 2 1 . . . . . . Largest Inventory Capacity 20 | 8 20 20 20 20 20 20 15 15 15 15 15 Average Capacity 17 | 7 15 20 20 20 20 15 15 15 15 14 5 Most Carried 20 | 7 17 17 20 20 20 20 15 15 15 15 7 Average Carried 16 | 3 10 17 19 18 19 14 14 14 13 13 5 Final Capacity 20 | 8 20 20 20 20 20 15 15 15 15 5 5 Final Carried 20 | 6 17 17 20 20 20 15 15 13 15 5 5 Class Distribution -------------------- 40% | Mutant 33% | Scavenger-Mutant 14% | Scout 9% | Scavenger-Scout Dominant Class ---------------- Mutant | -10/Materials Scavenger-Mutant | -10/Mines Mutant | -9/Materials Mutant | -9/Mines Scavenger-Mutant | -8/Materials Mutant | -7/Factory Scout | -7/Waste Scout | -7/Factory Scavenger-Scout | -7/Lower Caves Scavenger-Scout | -7/Lower Caves Hacker-Mutant | -6/Factory Resources | -11 -10 -10 -9 -9 -8 -7 -7 -7 -7 -7 -6 ----------- Run | Yrd Mat Min Mat Min Mat Fac Was Fac Low Low Fac Matter Collected 4750 | 286 383 220 1150 374 629 384 877 172 185 90 . Remotely . | . . . . . . . . . . . . Salvage Created 4761 | 144 437 280 1102 379 1186 567 341 97 45 52 131 Parts 336 | 15 36 21 85 20 78 48 14 1 2 2 14 Haulers Intercepted 7 | . 1 . 4 . 2 . . . . . . Recyclers Shooed 3 | . . . 1 . 2 . . . . . . Parts Field Recycled . | . . . . . . . . . . . . Retrieved Matter . | . . . . . . . . . . . . Parts Self-Destructed 4 | . . . . . . . . . 2 2 . Prevented 1 | . . . . . . . . . . 1 . Kills | -11 -10 -10 -9 -9 -8 -7 -7 -7 -7 -7 -6 ------- Run | Yrd Mat Min Mat Min Mat Fac Was Fac Low Low Fac Combat Hostiles Destroyed 102 | . 11 5 30 6 25 11 . 1 3 2 8 Melee 1 | . . . 1 . . . . . . . . Guns 34 | . 6 . 6 . 14 7 . 1 . . . Cannons 44 | . 5 . 21 6 11 . . . . . 1 AOE 20 | . . 5 . . . 3 . . 3 2 7 Classes Destroyed 14 | 2 6 . 3 . . 2 1 . . . . Worker 20 | . 2 2 3 1 3 3 . 1 . . 5 Builder 11 | . . . 1 5 2 3 . . . . . Tunneler 18 | 4 4 1 3 3 2 1 . . . . . Hauler 7 | . 1 . 4 . 2 . . . . . . Recycler 7 | 1 . 2 . 2 2 . . . . . . Mechanic 1 | . . . . . . 1 . . . . . Operator 5 | . 1 . 1 . 1 1 . 1 . . . Watcher 13 | . 3 . 5 . 3 1 . 1 . . . Swarmer 44 | . 6 3 10 3 7 3 . . 3 1 8 Grunt 40 | . 5 2 13 3 12 4 . . . 1 . Brawler 1 | . . . 1 . . . . . . . . Sentry 14 | . . . 6 . 6 2 . . . . . Programmer 3 | . . . . . . 2 . 1 . . . Surgeon 2 | . . . . . . . 2 . . . . Wasp 6 | . . . . . . . 6 . . . . Thug 7 | . . . . . . . 7 . . . . Savage 2 | . . . . . . . 2 . . . . Martyr 2 | . . . . . . . 2 . . . . Best Kill Streak 8 | 4 4 4 8 3 7 6 . 1 3 1 8 Combat Bots Only 6 | . 3 3 3 3 6 3 . 1 3 1 3 Max Kills in Single Turn 8 | 1 2 2 2 1 1 3 1 1 3 1 8 Gunslinging 1 | . 1 . . . . . . . . . . Exploded 3 | . . 2 . . . 2 . . 3 1 3 Melee 1 | . . . 1 . . . . . . . . Uniques/NPCs Destroyed . | . . . . . . . . . . . . Combat | -11 -10 -10 -9 -9 -8 -7 -7 -7 -7 -7 -6 -------- Run | Yrd Mat Min Mat Min Mat Fac Was Fac Low Low Fac Hostile Shots Fired 528 | . 50 10 137 25 88 74 . 18 5 73 48 Missed 175 | . 8 6 33 6 26 31 . 11 3 32 19 Damage Taken 5800 | . 477 58 1171 164 1001 613 . 291 29 1048 948 Core 1750 | . 63 7 149 . 136 143 . 47 . 352 853 Absorbed by Shields . | . . . . . . . . . . . . Ignored by Resistances 59 | . . . 12 9 38 . . . . . . Regen/Repaired (Parts) 50 | . . . 41 . . . . 9 . . . Core Remaining (%) 66 | 100 . 72 . 62 75 . . . . 22 . Volleys Fired 381 | 16 55 19 79 12 77 31 77 5 1 5 4 Largest 2 | 2 2 1 2 2 2 2 2 2 1 1 1 Hottest 160 | 70 78 30 88 88 160 160 56 56 39 39 85 Shots Fired 714 | 25 110 19 152 24 150 59 154 11 2 4 4 Gun 472 | 25 70 11 61 . 82 57 154 11 1 . . Cannon 227 | . 40 . 91 24 68 . . . . . 4 Launcher 15 | . . 8 . . . 2 . . 1 4 . Special . | . . . . . . . . . . . . Kinetic 540 | 16 81 11 152 24 68 22 154 11 1 . . Thermal 159 | 9 29 . . . 82 35 . . . . 4 Explosive 13 | . . 8 . . . 2 . . 1 2 . Electromagnetic 2 | . . . . . . . . . . 2 . Robot Hit Streak 23 | 8 8 7 8 8 10 23 10 5 2 4 2 Robot Miss Streak 21 | 1 4 2 21 15 7 9 13 4 . 1 1 Penetration Max . | . . . . . . . . . . . . Secondary Targets 1 | . 1 . . . . . . . . . . Max Gunslinging Chain 1 | . 1 . . . . . . . . . . Shots Hit Robots 578 | 17 61 7 128 28 130 51 138 11 1 3 3 Core Hits 618 | 8 32 13 95 21 112 63 253 5 2 3 11 Critical Kills 1 | . . . . 1 . . . . . . . Critical Parts Destroyed 6 | . . . 2 2 . . . 2 . . . Critical Strikes 8 | . 1 . 2 3 . . . 2 . . . Burn 1 | . 1 . . . . . . . . . . Smash 7 | . . . 2 3 . . . 2 . . . Melee Attacks 72 | . . . 18 15 9 1 . 18 6 4 1 Impact 71 | . . . 18 15 9 1 . 18 6 4 . Slashing 1 | . . . . . . . . . . . 1 Piercing . | . . . . . . . . . . . . Sneak Attacks 16 | . . . 5 10 . . . 1 . . . Combat Hostiles . | . . . . . . . . . . . . Follow-up Attacks . | . . . . . . . . . . . . Damage Inflicted 14359 | 160 842 381 2319 925 2463 1359 3981 358 202 235 1134 Guns 8016 | 160 472 95 736 . 1335 1111 3981 126 . . . Cannons 2900 | . 370 . 1158 234 1046 . . . . . 92 Explosions 2095 | . . 286 . . 82 248 . . 202 235 1042 Melee 1348 | . . . 425 691 . . . 232 . . . Ramming . | . . . . . . . . . . . . Kinetic 8404 | 96 583 95 1894 234 1046 349 3981 126 . . . Thermal 3554 | 64 259 . . . 1335 762 . . . . 1134 Explosive 926 | . . 286 . . 82 232 . . 202 124 . Electromagnetic 127 | . . . . . . 16 . . . 111 . Impact 1348 | . . . 425 691 . . . 232 . . . Slashing . | . . . . . . . . . . . . Piercing . | . . . . . . . . . . . . Highest Corruption 23 | . . . . 4 . 2 2 4 4 23 . Average Corruption 3 | . . . . 4 . 2 2 3 4 9 . Corruption Purged . | . . . . . . . . . . . . Corruption Blocked . | . . . . . . . . . . . . Effects 58 | . . . . 9 . . 7 19 10 13 . Message Errors 12 | . . . . 1 . . 2 8 1 . . Matter Fused 9 | . . . . 2 . . 1 2 4 . . Heat Flow Errors 9 | . . . . 3 . . 1 1 2 2 . Energy Discharges 7 | . . . . . . . 2 2 1 2 . Parts Fused 2 | . . . . 1 . . . . . 1 . Data Loss (minor) 7 | . . . . 1 . . 1 1 1 3 . Data Loss (major) 3 | . . . . 1 . . . 1 . 1 . Misfires 4 | . . . . . . . . 3 1 . . Alerts 1 | . . . . . . . . 1 . . . Misdirections 3 | . . . . . . . . . . 3 . Weapon Failures 1 | . . . . . . . . . . 1 . Overload Shots . | . . . . . . . . . . . . Overflow Damage 983 | . . . 181 421 14 . . 217 52 . 98 Projectiles . | . . . . . . . . . . . . Explosions 164 | . . . . . 14 . . . 52 . 98 Melee 819 | . . . 181 421 . . . 217 . . . Knockbacks 82 | . 1 . 27 12 40 . . 2 . . . Impact 5 | . . . 2 2 . . . 1 . . . Kinetic 71 | . 1 . 23 10 37 . . . . . . Secondary 6 | . . . 2 . 3 . . 1 . . . Self-Inflicted Damage 843 | . . 11 . . 88 158 . . . 40 546 Shots 17 | . . 1 . . 1 5 . . . 2 8 Rammed . | . . . . . . . . . . . . Targets Rammed . | . . . . . . . . . . . . Kicked . | . . . . . . . . . . . . Crushed . | . . . . . . . . . . . . Highest Temperature 354 | 90 233 12 354 298 317 253 119 196 219 250 40 Average Temperature 84 | 38 72 4 96 119 71 79 55 79 85 120 20 Received Heat Transfer 1503 | . 246 18 417 54 408 171 . 33 . 156 . Effects 4 | . . . . 2 . 2 . . . . . Interference 4 | . . . . 2 . 2 . . . . . Siege Activations . | . . . . . . . . . . . . Robots Corrupted 10 | . . . 5 4 . . . 1 . . . Combat Hostiles 2 | . . . 2 . . . . . . . . Parts Fried 20 | . . . 6 10 . . . 4 . . . Impact Corruptions 26 | . . . 8 12 . . . 6 . . . Robots Melted 1 | . . . . . . 1 . . . . . Combat Hostiles 1 | . . . . . . 1 . . . . . Parts Melted 8 | . 2 . . . 1 5 . . . . . Heat Transferred 6521 | 185 851 . . . 3000 1674 . . . . 811 Parts Sabotaged . | . . . . . . . . . . . . Parts Stolen . | . . . . . . . . . . . . Parts Stripped . | . . . . . . . . . . . . Power Chain Reactions . | . . . . . . . . . . . . Alert | -11 -10 -10 -9 -9 -8 -7 -7 -7 -7 -7 -6 ------- Run | Yrd Mat Min Mat Min Mat Fac Was Fac Low Low Fac Peak Influence 818 | 25 171 187 400 176 590 410 200 118 . . 818 Initial 155 | . 16 . 7 96 7 155 143 . . . 65 Average 137 | 11 62 53 160 80 271 180 183 43 . . 446 Maximum Alert Level 3 | . 1 . 2 . 2 2 1 . . . 3 Low Security (%) 74 | 100 99 100 59 100 42 62 30 100 . . 26 Level 1 19 | . . . 38 . 25 30 69 . . . 22 Level 2 5 | . . . 1 . 31 7 . . . . 13 Level 3 . | . . . . . . . . . . . 38 Level 4 . | . . . . . . . . . . . . Level 5 . | . . . . . . . . . . . . High Security . | . . . . . . . . . . . . Max Security . | . . . . . . . . . . . . Squads Dispatched 27 | . 2 . 4 . 4 7 . 8 . 1 1 Investigation 11 | . 1 . 2 . 2 1 . 5 . . . Extermination 3 | . . . . . . 2 . 1 . . . Reinforcement 7 | . 1 . 2 . 2 . . 2 . . . Assault 2 | . . . . . . . . . . 1 1 Garrison 4 | . . . . . . 4 . . . . . Intercept . | . . . . . . . . . . . . Searches Triggered . | . . . . . . . . . . . . Construction Impeded 2 | . . . . . 1 . . 1 . . . Haulers Reinforced . | . . . . . . . . . . . . Active Scanning Responses . | . . . . . . . . . . . . Cargo Convoy Interrupts 1 | . . . . . . 1 . . . . . Stealth | -11 -10 -10 -9 -9 -8 -7 -7 -7 -7 -7 -6 --------- Run | Yrd Mat Min Mat Min Mat Fac Was Fac Low Low Fac Distress Signals 10 | . . . 8 . 2 . . . . . . Communications Jammed . | . . . . . . . . . . . . Distress Signals . | . . . . . . . . . . . . Times Spotted 186 | . 18 5 50 6 31 17 7 15 3 21 13 Peak Tracking Total 8 | . 4 3 5 3 6 4 3 6 3 8 5 Tactical Retreats 22 | . 1 . 6 . 1 2 1 3 . 6 2 Traps | -11 -10 -10 -9 -9 -8 -7 -7 -7 -7 -7 -6 ------- Run | Yrd Mat Min Mat Min Mat Fac Was Fac Low Low Fac Traps Triggered 5 | . . . . . . 1 . 4 . . . Indirectly . | . . . . . . . . . . . . Trap Hack Attempts . | . . . . . . . . . . . . Triggered . | . . . . . . . . . . . . Disarmed . | . . . . . . . . . . . . Reprogrammed . | . . . . . . . . . . . . Reused . | . . . . . . . . . . . . Traps Extracted . | . . . . . . . . . . . . Installed . | . . . . . . . . . . . . Triggered 2 | . . . . . . 1 . . . 1 . Objects Rigged 7 | . . . . . . . . . . . 7 Exploded 2 | . . . . . . . . . . . 2 Machines | -11 -10 -10 -9 -9 -8 -7 -7 -7 -7 -7 -6 ---------- Run | Yrd Mat Min Mat Min Mat Fac Was Fac Low Low Fac Machines Disabled 28 | . . 1 . . 2 8 . . 1 . 16 Max in Single Turn 8 | . . 1 . . 1 4 . . 1 . 8 Garrison Access 1 | . . . . . . . . . . . 1 Machines Repaired . | . . . . . . . . . . . . Machines Dismantled . | . . . . . . . . . . . . Machines Sabotaged . | . . . . . . . . . . . . Overloaded Fab Kills . | . . . . . . . . . . . . Hacking | -11 -10 -10 -9 -9 -8 -7 -7 -7 -7 -7 -6 --------- Run | Yrd Mat Min Mat Min Mat Fac Was Fac Low Low Fac Machines Accessed 62 | . 10 1 12 . 8 10 . 19 1 . 1 Terminals 32 | . 8 1 7 . 6 3 . 6 . . 1 Fabricators 7 | . . . . . . 1 . 6 . . . Repair Stations 7 | . 1 . 2 . . 1 . 3 . . . Recycling Units 9 | . 1 . 2 . 1 2 . 3 . . . Scanalyzers 5 | . . . 1 . 1 2 . 1 . . . Garrison Access 1 | . . . . . . 1 . . . . . Total Hacks 163 | . 35 2 31 . 23 20 . 50 1 . 1 Successful 82 | . 20 . 17 . 12 11 . 20 1 . 1 Failed 79 | . 14 2 14 . 10 9 . 30 . . . Catastrophic 17 | . 3 . 2 . 5 . . 7 . . . Database Lockouts 2 | . 1 . . . 1 . . . . . . Manual 103 | . 26 2 23 . 18 5 . 28 . . 1 Terminals 104 | . 30 2 21 . 18 7 . 25 . . 1 Fabricators 14 | . . . . . . 2 . 12 . . . Repair Stations 13 | . 3 . 3 . . 2 . 5 . . . Recycling Units 19 | . 2 . 5 . 3 3 . 6 . . . Scanalyzers 10 | . . . 2 . 2 4 . 2 . . . Garrison Access 2 | . . . . . . 2 . . . . . Terminal Hacks 30 | . 12 . 6 . 4 2 . 5 1 . . Part Schematic 2 | . 1 . . . 1 . . . . . . Robot Analysis 1 | . . . . . . . . 1 . . . Open Door 1 | . . . . . . . . . 1 . . Branch Access Points 4 | . 1 . 1 . . 1 . 1 . . . Terminal Index 5 | . 1 . 1 . 1 1 . 1 . . . Fabricator Index 1 | . . . . . . . . 1 . . . Unreport Threat 8 | . 4 . 3 . 1 . . . . . . Locate Traps 5 | . 2 . 1 . 1 . . 1 . . . Recall Investigation 1 | . 1 . . . . . . . . . . Zone Layout 2 | . 2 . . . . . . . . . . Fabricator Hacks 5 | . . . . . . 1 . 4 . . . Network Status 1 | . . . . . . 1 . . . . . Load Schematic 4 | . . . . . . . . 4 . . . Repair Station Hacks 7 | . 1 . 2 . . 2 . 2 . . . Scan Component 4 | . 1 . 1 . . 1 . 1 . . . Repair 3 | . . . 1 . . 1 . 1 . . . Recycling Unit Hacks 8 | . 1 . 2 . 1 2 . 2 . . . Retrieve Components 8 | . 1 . 2 . 1 2 . 2 . . . Scanalyzer 7 | . . . 2 . 2 2 . 1 . . . Insert Component 4 | . . . 1 . 1 1 . 1 . . . Analyze 3 | . . . 1 . 1 1 . . . . . Garrison Access Hacks . | . . . . . . . . . . . . Unauthorized Hacks 25 | . 6 . 5 . 5 2 . 6 . . 1 Terminals 16 | . 5 . 3 . 4 1 . 2 . . 1 Assimilate 1 | . 1 . . . . . . . . . . Botnet 9 | . 3 . 1 . 2 1 . 2 . . . Detonate 1 | . . . . . . . . . . . 1 Operators 5 | . 1 . 2 . 2 . . . . . . Fabricators 5 | . . . . . . 1 . 4 . . . Recompile 5 | . . . . . . 1 . 4 . . . Repair Stations . | . . . . . . . . . . . . Recycling Units 4 | . 1 . 2 . 1 . . . . . . Tunnel 4 | . 1 . 2 . 1 . . . . . . Scanalyzers . | . . . . . . . . . . . . Garrison Access . | . . . . . . . . . . . . Data Cores Recovered 2 | . . . . . . 1 . 1 . . . Used 1 | . . . . . . 1 . . . . . Hacking Detections 54 | . 9 1 11 . 8 9 . 15 . . 1 Full Trace Events 2 | . . . . . 1 . . 1 . . . Feedback Events . | . . . . . . . . . . . . Feedback Blocked . | . . . . . . . . . . . . Robot Schematics Acquired . | . . . . . . . . . . . . Robots Built . | . . . . . . . . . . . . Authchips . | . . . . . . . . . . . . Time . | . . . . . . . . . . . . Total Robot Build Rating . | . . . . . . . . . . . . Part Schematics Acquired 5 | . 1 . 1 . 2 1 . . . . . Parts Built . | . . . . . . . . . . . . Authchips . | . . . . . . . . . . . . Time . | . . . . . . . . . . . . Total Part Build Rating . | . . . . . . . . . . . . Parts Repaired 2 | . . . 1 . . . . 1 . . . Time 126 | . . . 26 . . 44 . 56 . . . Parts Recycled . | . . . . . . . . . . . . Recycled Matter . | . . . . . . . . . . . . Retrieved Matter . | . . . . . . . . . . . . Retrieved Components 27 | . 1 . 9 . 10 5 . 2 . . . Parts Scanalyzed 4 | . . . 1 . 1 1 . 1 . . . Part Schematics Acquired 3 | . . . 1 . 1 1 . . . . . Parts Damaged . | . . . . . . . . . . . . Bothacking | -11 -10 -10 -9 -9 -8 -7 -7 -7 -7 -7 -6 ------------ Run | Yrd Mat Min Mat Min Mat Fac Was Fac Low Low Fac Used RIF Installer . | . . . . . . . . . . . . Robots Hacked . | . . . . . . . . . . . . Non-combat . | . . . . . . . . . . . . Combat . | . . . . . . . . . . . . Robot Hacks Applied . | . . . . . . . . . . . . Relay Couplers Released 1 | . . . . . . . . . . . 1 Machine Destruction 1 | . . . . . . . . . . . 1 Fabnet Peak Effective % . | . . . . . . . . . . . . Robots Rewired 3 | . . . . . . . . . . . 3 Allies Hacked . | . . . . . . . . . . . . Hacks Repelled . | . . . . . . . . . . . . Allies | -11 -10 -10 -9 -9 -8 -7 -7 -7 -7 -7 -6 -------- Run | Yrd Mat Min Mat Min Mat Fac Was Fac Low Low Fac Total Allies 23 | . 1 . . . . . 19 . . . 3 Largest Group 19 | . 1 1 1 . . . 19 . . . 3 Highest-Rated Group 465 | . 10 10 10 . . . 465 . . . 54 Highest-Rated Ally 35 | . 10 10 10 . . . 35 . . . 30 Total Orders 4 | . . . 4 . . . . . . . . STAY 2 | . . . 2 . . . . . . . . FOLLOW 2 | . . . 2 . . . . . . . . Ally Attacks 98 | . . . . . . . 98 . . . . Total Damage 3101 | . . . . . . . 3101 . . . . Kills 6 | . . . . . . . 6 . . . . Allies Corrupted . | . . . . . . . . . . . . Allies Melted . | . . . . . . . . . . . . Intel | -11 -10 -10 -9 -9 -8 -7 -7 -7 -7 -7 -6 ------- Run | Yrd Mat Min Mat Min Mat Fac Was Fac Low Low Fac Robot Analysis Total 1 | . . . . . . . . 1 . . . Derelict Logs Recovered 7 | . . 3 . 1 . . . . 3 . . Drone Launches . | . . . . . . . . . . . . Drone Recoveries . | . . . . . . . . . . . . Exploration | -11 -10 -10 -9 -9 -8 -7 -7 -7 -7 -7 -6 ------------- Run | Yrd Mat Min Mat Min Mat Fac Was Fac Low Low Fac Turns Passed 9373 | 116 1099 729 2040 980 987 1087 414 990 419 300 212 Spaces Moved 8548 | 56 796 587 1271 661 497 1111 367 1667 864 410 261 Core 305 | 1 . . . . . . . . . 60 244 Treads . | . . . . . . . . . . . . Legs 17 | . . . . . . . . . . . 17 Wheels 3867 | 55 796 587 1271 661 497 . . . . . . Hover 4359 | . . . . . . 1111 367 1667 864 350 . Flight . | . . . . . . . . . . . . Fastest Speed 44 | 50 90 110 110 120 101 44 44 44 44 44 50 Average Speed 80 | 90 100 110 119 123 108 77 44 44 44 55 56 Slowest Speed 150 | 100 125 110 125 125 145 108 44 48 104 116 150 Overloaded Moves . | . . . . . . . . . . . . Propulsion Burnouts . | . . . . . . . . . . . . Robots Hopped . | . . . . . . . . . . . . Cave-ins Triggered 1 | . . . . . . . . . . 1 . Exploration Rate (%) 60 | 4 95 92 81 97 44 25 95 39 93 48 7 Regions Visited 11 Branch Regions 4 Pre-discovered Areas 6 | . 1 2 2 . 1 . . . . . . Known Exits Taken 4 | . 1 . 1 . . . . 1 1 . . Unknown Exits Taken 5 | 1 . 1 . 1 1 . . . . 1 . Scrap Searched 7 | . . 1 . 2 . . . . 3 1 . Spaces Dug 38 | . . . 7 4 6 1 . 13 3 4 . Terrain Destroyed 328 | . 1 59 7 4 60 12 . 13 21 31 120 Melee 38 | . . . 7 4 6 1 . 13 3 4 . Projectile 2 | . 1 . . . . . . . . . 1 AOE 288 | . . 59 . . 54 11 . . 18 27 119 Terrain Rammed . | . . . . . . . . . . . . Walls Destroyed . | . . . . . . . . . . . . Machines Disabled . | . . . . . . . . . . . . Actions | -11 -10 -10 -9 -9 -8 -7 -7 -7 -7 -7 -6 --------- Run | Yrd Mat Min Mat Min Mat Fac Was Fac Low Low Fac Total 10224 | 97 1000 650 1624 779 761 1279 470 1882 886 474 322 Wait 802 | 8 97 38 157 77 123 72 17 150 5 36 22 Move 8538 | 55 795 586 1270 660 496 1111 366 1666 863 409 261 Hop . | . . . . . . . . . . . . Pick Up 86 | 9 14 . 17 4 13 10 4 9 2 . 4 Fast Attach 42 | 6 4 . 6 . 13 4 . 3 1 . 5 Attach 34 | 1 3 . 3 2 6 6 . 3 . 8 2 Detach 10 | . 3 . . . 2 . . . . 4 1 Swap 122 | . 13 7 43 5 9 22 1 13 7 2 . Drop 122 | 2 16 . 31 4 13 22 5 15 1 6 7 Fire 381 | 16 55 19 79 12 77 31 77 5 1 5 4 Melee 72 | . . . 18 15 9 1 . 18 6 4 1 Ram . | . . . . . . . . . . . . Kick . | . . . . . . . . . . . . Crush . | . . . . . . . . . . . . Escape Stasis . | . . . . . . . . . . . . Rewire 15 | . . . . . . . . . . . 15 Trap . | . . . . . . . . . . . . Miscellaneous . | . . . . . . . . . . . . Route ------- -11/Scrapyard -10/Materials (discovered 5 exits: *Mat x3 / *Min x2) -10/Mines (discovered 2 exits: *Mat x2) -9/Materials (discovered 3 exits: *Mat / *Min x2) -9/Mines (discovered 3 exits: *Mat x2 / [*Exi]) -8/Materials -7/Factory (discovered 3 exits: *Sto / *Low x2) -7/Waste -7/Factory (discovered 4 exits: *Sto x2 / *Low x2) -7/Lower Caves -7/Lower Caves -6/Factory History --------- Turn | Location | Event 12 | -11/Scrapyard | Discovered new exit (range 16) 117 | -11/Scrapyard | Entered Materials 202 | -10/Materials | Discovered new exit (range 8) 330 | -10/Materials | Build established: Mutant 399 | -10/Materials | Discovered new exit (range 3) 624 | -10/Materials | Central database locked down 645 | -10/Materials | Discovered new exit (range 12) 645 | -10/Materials | Identified exit to Mines 972 | -10/Materials | Discovered new exit (range 10) 1081 | -10/Materials | Discovered new exit (range 16) 1216 | -10/Materials | Entered Mines 1216 | -10/Mines | Accompanied by 1 ally 1221 | -10/Mines | Met a Derelict bent on vengeance 1477 | -10/Mines | Learned location of Storage (-7) 1487 | -10/Mines | Learned location of Recycling (-7) 1657 | -10/Mines | Build established: Scavenger-Mutant 1708 | -10/Mines | Discovered new exit (range 5) 1803 | -10/Mines | Found a hidden stash of uninstalled traps 1855 | -10/Mines | Discovered new exit (range 14) 1945 | -10/Mines | Entered Materials 1945 | -9/Materials | Accompanied by 1 ally 1945 | -9/Materials | Evolved 2 slots: Utility x2 2072 | -9/Materials | Discovered new exit (range 6) 2889 | -9/Materials | Discovered new exit (range 16) 3196 | -9/Materials | Build established: Mutant 3231 | -9/Materials | Repaired Grenade Launcher 3526 | -9/Materials | Identified exit to Mines 3985 | -9/Materials | Entered Mines 4060 | -9/Mines | Discovered new exit (range 5) 4285 | -9/Mines | Learned 2 Materials zone layouts 4296 | -9/Mines | Discovered new exit (range 11) 4307 | -9/Mines | Deemed a non-threat by the Exiles lab entrance 4308 | -9/Mines | Discovered new exit (range 5) 4713 | -9/Mines | Received a Rocket Launcher from a helpful Derelict 4926 | -9/Mines | Build established: Scavenger-Mutant 4965 | -9/Mines | Entered Materials 4965 | -8/Materials | Evolved 2 slots: Propulsion x2 5411 | -8/Materials | Lost 3 parts (2n1u) 5584 | -8/Materials | Lost 3 parts (1p2n) 5848 | -8/Materials | Central database locked down 5933 | -8/Materials | Discovered new exit (range 11) 5952 | -8/Materials | Entered Factory 5952 | -7/Factory | Evolved 2 slots: Propulsion x1, Utility x1 5953 | -7/Factory | Identified exit to Storage 6118 | -7/Factory | Discovered new exit (range 13) 6433 | -7/Factory | Build established: Mutant 6513 | -7/Factory | Garrison activated, responded to threat 6795 | -7/Factory | Garrison activated, responded to threat 6881 | -7/Factory | Cargo convoy interrupted 6892 | -7/Factory | Identified exit to Lower Caves 7039 | -7/Factory | Sucked down chute 7039 | -7/Factory | Entered Waste 7045 | -7/Waste | Spotted C-40 Crusher 7047 | -7/Waste | Spotted C-40 Crusher 7047 | -7/Waste | Spotted C-40 Crusher 7058 | -7/Waste | Spotted C-40 Crusher 7076 | -7/Waste | Spotted C-40 Crusher 7081 | -7/Waste | Warlord forces began an assault 7117 | -7/Waste | Allies destroyed C-40 Crusher 7117 | -7/Waste | Allies destroyed C-40 Crusher 7119 | -7/Waste | Spotted C-40 Crusher 7122 | -7/Waste | Build established: Scout 7124 | -7/Waste | Allies destroyed C-40 Crusher 7126 | -7/Waste | Allies destroyed C-40 Crusher 7153 | -7/Waste | Allies destroyed C-40 Crusher 7202 | -7/Waste | Murdered 3 allies 7279 | -7/Waste | Lost 3 allies 7371 | -7/Waste | Murdered 7 allies 7444 | -7/Waste | Discovered new exit (range 11) 7453 | -7/Waste | Identified exit to Factory 7453 | -7/Waste | Entered Factory 8135 | -7/Factory | Repaired Adv. Hacking Suite? 8443 | -7/Factory | Entered Lower Caves 8447 | -7/Lower Caves | Learned 4 Factory zone layouts 8625 | -7/Lower Caves | Learned 4 Factory zone layouts 8672 | -7/Lower Caves | Learned 4 Factory zone layouts 8710 | -7/Lower Caves | Acquired the password to a Derelict Tinkerer's latest research 8737 | -7/Lower Caves | Build established: Scavenger-Scout 8746 | -7/Lower Caves | Found Alien Artifact 8746 | -7/Lower Caves | Identified Core Expander 8746 | -7/Lower Caves | Installed Core Expander, added new Utility slot 8855 | -7/Lower Caves | Discovered new exit (range 14) 8860 | -7/Lower Caves | Identified exit to Lower Caves 8862 | -7/Lower Caves | Entered another Lower Caves area 8864 | -7/Lower Caves | Attracted the attention of an 0b10 outpost 8964 | -7/Lower Caves | Spotted B-75 Beast 8987 | -7/Lower Caves | Crushed by falling debris 8987 | -7/Lower Caves | System corruption reached 10% 9018 | -7/Lower Caves | Lost 3 parts (1n2u) 9059 | -7/Lower Caves | Core integrity fell below 50% 9079 | -7/Lower Caves | Lost 3 parts (1p2n) 9159 | -7/Lower Caves | Discovered new exit (range 8) 9162 | -7/Lower Caves | Entered Factory 9162 | -6/Factory | Evolved 2 slots: Power x1, Propulsion x1 9163 | -6/Factory | Lost 7 parts (1p2n4u) 9281 | -6/Factory | Core integrity fell below 50% 9294 | -6/Factory | Core integrity fell below 20% 9374 | -6/Factory | Destroyed by Y-54 Guardian with Flak Gun Last Messages --------------- 09317_ S-27 Virus destroyed. 09318_ K-01 Serf cleans the Assembly Bed. 09324_ Dropped Phase Cannon. 09325_ K-01 Serf latches onto L-41 Fighter. 09325_ K-01 Serf pushes L-41 Fighter. 09325_ K-01 Serf collects debris. 09326_ K-01 Serf pushes L-41 Fighter. 09327_ Attempting to rewire L-41 Fighter. 09327_ L-41 Fighter rewired. 09330_ K-01 Serf cleans the Assembly Bed. 09330_ K-01 Serf collects debris. 09334_ K-01 Serf pushes S-27 Virus. 09337_ Attempting to rewire S-27 Virus. 09343_ S-27 Virus rewired. 09345_ Attempting to rewire S-27 Virus. 09345_ S-27 Virus rewired. 09363_ K-01 Serf collects debris. 09367_ U-05 Engineer lays Concrete. 09368_ U-05 Engineer builds a Wall. 09368_ K-01 Serf collects debris. Map ----- +----------------------------------------------------+ | ???????????????????# ?# #?# #?? | | ???????????????????# """ # ### #?? | | ???????????????????# """ + + """" ""?? #?? | | ???????????????????# """ # ### """" """" #?? | | ???????????????????# ?# #?# """" """" #?? | | ???????????????????########?##+##?# """" """" #?? | | ??????????????????????????#???????# """" """" #?? | | ??????????????????????????#???????# """" """" #?? | | ???????##########?????????#???????# #?? | | ???????# #?????????#???????# #?? | | ???????# """ #?????????#???????# ]] #?? | | ???????# """ ###########???????# #?? | | ??????????????????????????????????#####"#+######?? | | ?????????????????????????############## /% +?? | | ?????????????????????????#! # ####?? | | ?????????????????????????# # #??? | | ?????????????????????????# + #??# | | ?????????????????????????#! # #### | | ?????????????????????????# " " # | | ?????????????????????????#########+"""" """""# | | ???????????????????????????????# | | ???????????????????????????????# | | ???????????????????????????????#! k | | ????????????????????????########A | | ??????????????????? + m R | | ????????????????????????#@ | | ????????????????????????# k | | ????????????????????????+ !!s | | ????????????????????????# !! | | ????????????????????????+ !! | | ????????????????????????# "" " | | ????????????????????????+ ""G" | | ????????????????????????# ############## #### | | ????????????????????????# #????????????? #? | | ????????????????????????# ??????????????#####? | | ????????????????????????# ???????????????????????? | | ????????????????????????# ???????????????????????? | | #???????????????????????# ?##???# # | | #???????????????????????? ? #???# # | | ????????????????????????? ? ##### # | | ?????????????????????????Y? + # | | ??????????????????????????? ##### # | | ??????????????????????????? #???# + | | ???????????????????????????####?# # | | ??????????????????????????? #?# # | | ??????????????????????????? #?# # | | ??????????????????????????? #?# # | | ??????????????????????????? #?# # | | ??????????????????????????? #?# # | | ??????????????????????????? ################ | +----------------------------------------------------+ Best States ------------- Heat Dissipation 62 Energy Generation 16 Energy Capacity 800 Matter Stores 300 Matter Capacity 300 Sight Range 16 Robot Scan Range 15 Terrain Scan Range 16 Terrain Scan Density 210 Armor Coverage 525 Resistance: KI 30 Resistance: TH 10 Evasion (%) 56 Targeting Accuracy 8 Recoil Reduction 4 Offensive Hacking 20 Authchip Count 5 Item Schematics ----------------- Hcp. Storage Unit | -10/Materials | Hacked Lgt. Armor Plating | -9/Materials | Scanalyzed Hacking Suite | -8/Materials | Scanalyzed Imp. Sensor Array | -8/Materials | Hacked Hover Unit | -7/Factory | Scanalyzed Robot Schematics ------------------ None Fabricated ------------ Nothing Alien Tech Used ----------------- Core Expander Achievements -------------- None Challenges ------------ None Game ------ Seed PhysicsSapperRipper Manual? 0 Play Time 01:36:23 Cumulative 289.7 hours Start 2024.12.10 @ 20:26:16 End 2024.12.10 @ 22:46:53 Sessions 5 Manual Loads 0 Difficulty Rogue Special Mode None Game No. 152 Rogue 152 Adventurer 0 Explorer 0 Win Type - Total 4 Types 4/0/0/0/0/0/0/0/0 Lore% 45 Gallery% 66 Achievement% 58 Wizard Run 0 Options --------- Layout 0 ASCII 0 Keyboard 1 Movement Vi Keybinds 0 Fullscreen 2 Font 18/SmallcapsGlow Map View 76x50 Zoom Use 0% Tactical HUD 1 Map Filters NONE Filters NONE Steam 1 RUN: 93d8b07a-c8bb-4de3-a366-46472a8ab78d